Workbook

Sheet Sheet1
A1: 中国石油大学（北京）马克思主义学院马克思主义理论专业2021级博士研究生综合测评汇总表
A2: 学号 | B2: 德育成绩 | G2: 智育成绩 | L2: 文体成绩 | Q2: 总分 | R2: 排名
B3: 基础分 | C3: 奖励分 | D3: 惩罚分 | E3: 总分 | F3: 基准后总分 | G3: 学习成绩分 | H3: 奖励分 | I3: 惩罚分 | J3: 总分 | K3: 基准后总分 | L3: 基本分 | M3: 奖励分 | N3: 惩罚分 | O3: 总分 | P3: 基准后总分
A4: 2019211422 | B4: 100 | C4: 5 | D4: 0 | E4: =B4+C4 -> 105 | F4: =E4/MAX($E$4:$E$10)*100 -> 99.05660377 | G4: 93.5 | H4: 3 | I4: 0 | J4: =G4+H4 -> 96.5 | K4: =J4/MAX($J$4:$J$10)*100 -> 89.6007428 | L4: 100 | M4: 0 | N4: 0 | O4: 100 | P4: 100 | Q4: =F4*0.2+K4*0.7+P4*0.1 -> 92.53184072 | R4: =RANK(Q4,$Q$4:$Q$10,0) -> 2
A5: 2019211423 | B5: 100 | C5: 3 | D5: 0 | E5: =B5+C5 -> 103 | F5: =E5/MAX($E$4:$E$10)*100 -> 97.16981132 | G5: 92.7 | H5: 15 | I5: 0 | J5: =G5+H5 -> 107.7 | K5: =J5/MAX($J$4:$J$10)*100 -> 100 | L5: 100 | M5: 0 | N5: 0 | O5: 100 | P5: 100 | Q5: =F5*0.2+K5*0.7+P5*0.1 -> 99.43396226 | R5: =RANK(Q5,$Q$4:$Q$10,0) -> 1
A6: 2019211424 | B6: 100 | C6: 1 | D6: 0 | E6: 101 | F6: 95.28301887 | G6: 91.4 | H6: 0 | I6: 0 | J6: 91.4 | K6: 84.86536676 | L6: 100 | M6: 0 | N6: 0 | O6: 100 | P6: 100 | Q6: 88.46236051 | R6: 6
A7: 2019211425 | B7: 100 | C7: 2 | D7: 0 | E7: 102 | F7: 96.22641509 | G7: 92.2 | H7: 3 | I7: 0 | J7: 95.2 | K7: 88.39368617 | L7: 100 | M7: 0 | N7: 0 | O7: 100 | P7: 100 | Q7: 91.12086333 | R7: 3
A8: 2019211427 | B8: 100 | C8: 3 | D8: 0 | E8: 103 | F8: 97.16981132 | G8: 87.6 | H8: 3 | I8: 0 | J8: 90.6 | K8: 84.12256267 | L8: 100 | M8: 0 | N8: 0 | O8: 100 | P8: 100 | Q8: 88.31975614 | R8: 7
A9: 2019211430 | B9: 100 | C9: 1 | D9: 0 | E9: 101 | F9: 95.28301887 | G9: 92.2 | H9: 0 | I9: 0 | J9: 92.2 | K9: 85.60817084 | L9: 100 | M9: 0 | N9: 0 | O9: 100 | P9: 100 | Q9: 88.98232337 | R9: 5
A10: 2019211432 | B10: 100 | C10: 6 | D10: 0 | E10: 106 | F10: 100 | G10: 92.5 | H10: 0 | I10: 0 | J10: 92.5 | K10: 85.88672238 | L10: 100 | M10: 0 | N10: 0 | O10: 100 | P10: 100 | Q10: 90.12070566 | R10: 4
